[Event "*** Titled Tuesday Blitz"]
[Site "Chess.com"]
[Date "2020.11.03"]
[Round "11"]
[White "maximnovik"]
[Black "MarcoRiehle"]
[Result "0-1"]
[WhiteElo "2539"]
[BlackElo "2698"]
[TimeControl "180+1"]
[EndTime "12:08:59 PST"]
[Termination "MarcoRiehle won by resignation"]

1. d4 {[%clk 0:03:00.9]} 1... d5 {[%clk 0:02:59.3]} 2. c4 {[%clk 0:03:00.4]}
2... e6 {[%clk 0:02:59.7]} 3. Nc3 {[%clk 0:03:00.9]} 3... c5 {[%clk 0:02:59.6]}
4. cxd5 {[%clk 0:03:00.4]} 4... cxd4 {[%clk 0:02:58.7]} 5. Qa4+ {[%clk
0:02:59.7]} 5... Bd7 {[%clk 0:02:58.4]} 6. Qxd4 {[%clk 0:03:00.2]} 6... exd5
{[%clk 0:02:57.8]} 7. Qxd5 {[%clk 0:03:00.4]} 7... Nf6 {[%clk 0:02:57.6]} 8. Qd1
{[%clk 0:03:00.5]} 8... Nc6 {[%clk 0:02:57.5]} 9. Nf3 {[%clk 0:03:00.5]} 9...
Bc5 {[%clk 0:02:58.2]} 10. e3 {[%clk 0:03:00.3]} 10... Qe7 {[%clk 0:02:58.8]}
11. Be2 {[%clk 0:03:00.7]} 11... O-O-O {[%clk 0:02:59.4]} 12. O-O {[%clk
0:03:00.7]} 12... g5 {[%clk 0:03:00]} 13. Qc2 {[%clk 0:02:52.4]} 13... Kb8
{[%clk 0:02:53.6]} 14. a3 {[%clk 0:02:34.3]} 14... g4 {[%clk 0:02:51]} 15. Nd2
{[%clk 0:02:32.3]} 15... h5 {[%clk 0:02:43.2]} 16. Nc4 {[%clk 0:02:26.3]} 16...
g3 {[%clk 0:02:39]} 17. b4 {[%clk 0:02:14.5]} 17... gxf2+ {[%clk 0:02:28.9]} 18.
Rxf2 {[%clk 0:02:14.3]} 18... Bb6 {[%clk 0:02:22.7]} 19. Nxb6 {[%clk 0:02:12.5]}
19... axb6 {[%clk 0:02:23.6]} 20. e4 {[%clk 0:02:11.4]} 20... Ng4 {[%clk
0:02:18]} 21. Bf4+ {[%clk 0:02:10.5]} 21... Nce5 {[%clk 0:02:17]} 22. Bxg4
{[%clk 0:02:07.7]} 22... hxg4 {[%clk 0:02:15.7]} 23. Nd5 {[%clk 0:01:57.2]}
23... Qd6 {[%clk 0:02:15.6]} 24. Rd1 {[%clk 0:01:32.5]} 24... Rh5 {[%clk
0:02:05.2]} 25. a4 {[%clk 0:01:21.4]} 25... Rdh8 {[%clk 0:01:55.3]} 26. b5
{[%clk 0:01:18.4]} 26... Rxh2 {[%clk 0:01:47.4]} 27. Bxh2 {[%clk 0:01:05.5]}
27... Rxh2 {[%clk 0:01:48.3]} 28. Rf6 {[%clk 0:00:37]} 28... Nf3+ {[%clk
0:01:42.6]} 29. Rxf3 {[%clk 0:00:36.3]} 29... gxf3 {[%clk 0:01:39.7]} 30. Ne3
{[%clk 0:00:19.7]} 30... Qg3 {[%clk 0:01:23.4]} 31. Qf2 {[%clk 0:00:17.3]} 31...
Rh1+ {[%clk 0:01:21.9]} 32. Kxh1 {[%clk 0:00:17.3]} 32... Qxf2 {[%clk
0:01:22.4]} 0-1

[Event "*** Titled Tuesday Blitz"]
[Site "Chess.com"]
[Date "2020.11.03"]
[Round "11"]
[White "Legendinunknown"]
[Black "FontVella8"]
[Result "1-0"]
[WhiteElo "2697"]
[BlackElo "2505"]
[TimeControl "180+1"]
[EndTime "12:09:02 PST"]
[Termination "Legendinunknown won by checkmate"]

1. d4 {[%clk 0:03:00.9]} 1... d5 {[%clk 0:02:59.5]} 2. c4 {[%clk 0:03:00.5]}
2... e6 {[%clk 0:03:00]} 3. Nc3 {[%clk 0:02:58.2]} 3... c6 {[%clk 0:03:00.4]} 4.
Nf3 {[%clk 0:02:55.7]} 4... Nf6 {[%clk 0:02:59.7]} 5. Bg5 {[%clk 0:02:54.4]}
5... h6 {[%clk 0:02:59.1]} 6. Bh4 {[%clk 0:02:53.3]} 6... dxc4 {[%clk
0:02:58.4]} 7. e4 {[%clk 0:02:52.5]} 7... g5 {[%clk 0:02:58.6]} 8. Bg3 {[%clk
0:02:52.4]} 8... b5 {[%clk 0:02:58.1]} 9. Be2 {[%clk 0:02:51.9]} 9... Nbd7
{[%clk 0:02:54.8]} 10. O-O {[%clk 0:02:50.4]} 10... Bb7 {[%clk 0:02:52.8]} 11.
Ne5 {[%clk 0:02:48.7]} 11... Be7 {[%clk 0:02:45.7]} 12. f4 {[%clk 0:02:42.2]}
12... Qb6 {[%clk 0:02:39.3]} 13. fxg5 {[%clk 0:02:34.1]} 13... hxg5 {[%clk
0:02:39.1]} 14. Nxd7 {[%clk 0:02:34.2]} 14... Nxd7 {[%clk 0:02:37.8]} 15. e5
{[%clk 0:02:25.9]} 15... Rf8 {[%clk 0:01:37.7]} 16. Bh5 {[%clk 0:02:21.4]} 16...
O-O-O {[%clk 0:01:34.8]} 17. Bxf7 {[%clk 0:02:16.3]} 17... Nc5 {[%clk
0:01:25.2]} 18. Kh1 {[%clk 0:02:11.3]} 18... Nd3 {[%clk 0:01:20.2]} 19. Bxe6+
{[%clk 0:02:07.7]} 19... Kb8 {[%clk 0:01:20.3]} 20. Ne2 {[%clk 0:01:54.4]} 20...
c5 {[%clk 0:00:49.1]} 21. d5 {[%clk 0:01:50.9]} 21... Rxd5 {[%clk 0:00:46.1]}
22. Rxf8+ {[%clk 0:01:48.5]} 22... Bxf8 {[%clk 0:00:46]} 23. Bxd5 {[%clk
0:01:49.1]} 23... Bxd5 {[%clk 0:00:46.3]} 24. Qf1 {[%clk 0:01:49.7]} 24... Be7
{[%clk 0:00:43.3]} 25. Nc3 {[%clk 0:01:48.3]} 25... Bb7 {[%clk 0:00:39.1]} 26.
Qf7 {[%clk 0:01:45]} 26... Qc6 {[%clk 0:00:29.4]} 27. Rg1 {[%clk 0:01:43.7]}
27... Bd8 {[%clk 0:00:06.2]} 28. e6+ {[%clk 0:01:42]} 28... Nf4 {[%clk
0:00:02.8]} 29. e7 {[%clk 0:01:38.4]} 29... Bxe7 {[%clk 0:00:02.4]} 30. Qxe7
{[%clk 0:01:37.8]} 30... b4 {[%clk 0:00:01.6]} 31. Qxg5 {[%clk 0:01:37.3]} 31...
bxc3 {[%clk 0:00:01.7]} 32. Qxf4+ {[%clk 0:01:37]} 32... Kc8 {[%clk 0:00:02.2]}
33. bxc3 {[%clk 0:01:36.7]} 33... Qd5 {[%clk 0:00:02.1]} 34. Qc7# {[%clk
0:01:36.2]} 1-0

[Event "*** Titled Tuesday Blitz"]
[Site "Chess.com"]
[Date "2020.11.03"]
[Round "11"]
[White "sjam6687"]
[Black "m_ezat"]
[Result "1-0"]
[WhiteElo "2699"]
[BlackElo "2539"]
[TimeControl "180+1"]
[EndTime "12:09:09 PST"]
[Termination "sjam6687 won by checkmate"]

1. d4 {[%clk 0:03:00.9]} 1... Nf6 {[%clk 0:02:54.9]} 2. c4 {[%clk 0:03:00.7]}
2... g6 {[%clk 0:02:55.4]} 3. Nc3 {[%clk 0:02:59.5]} 3... Bg7 {[%clk 0:02:56]}
4. e4 {[%clk 0:02:59.4]} 4... d6 {[%clk 0:02:56.6]} 5. Be2 {[%clk 0:02:58.8]}
5... O-O {[%clk 0:02:56.7]} 6. h4 {[%clk 0:02:58]} 6... h5 {[%clk 0:02:55.4]} 7.
f3 {[%clk 0:02:54.8]} 7... c5 {[%clk 0:02:54.9]} 8. d5 {[%clk 0:02:52.7]} 8...
e6 {[%clk 0:02:55.2]} 9. Bf4 {[%clk 0:02:50.9]} 9... exd5 {[%clk 0:02:55]} 10.
cxd5 {[%clk 0:02:50.3]} 10... Re8 {[%clk 0:02:55.4]} 11. Nb5 {[%clk 0:02:48.6]}
11... Bf8 {[%clk 0:02:53.8]} 12. Qd2 {[%clk 0:02:44.5]} 12... a6 {[%clk
0:02:50.2]} 13. Nc3 {[%clk 0:02:42.5]} 13... b5 {[%clk 0:02:50.7]} 14. a4 {[%clk
0:02:34.1]} 14... b4 {[%clk 0:02:48.2]} 15. Nd1 {[%clk 0:02:33.9]} 15... Nbd7
{[%clk 0:02:48.6]} 16. Nh3 {[%clk 0:02:31.8]} 16... Ne5 {[%clk 0:02:40.3]} 17.
Ndf2 {[%clk 0:02:27.5]} 17... Bg7 {[%clk 0:02:32.8]} 18. a5 {[%clk 0:02:21.3]}
18... Bd7 {[%clk 0:02:28.2]} 19. O-O {[%clk 0:02:20.9]} 19... Bb5 {[%clk
0:02:03.6]} 20. g4 {[%clk 0:02:16.8]} 20... hxg4 {[%clk 0:02:02.6]} 21. fxg4
{[%clk 0:02:17]} 21... Qd7 {[%clk 0:01:24.2]} 22. Bxe5 {[%clk 0:02:15]} 22...
Rxe5 {[%clk 0:01:23.7]} 23. Ng5 {[%clk 0:02:15]} 23... Rae8 {[%clk 0:00:51.2]}
24. Bxb5 {[%clk 0:02:11.3]} 24... Qxb5 {[%clk 0:00:51.3]} 25. Qf4 {[%clk
0:02:11.1]} 25... Qc4 {[%clk 0:00:44.5]} 26. Rae1 {[%clk 0:02:08.6]} 26... R8e7
{[%clk 0:00:37]} 27. Qf3 {[%clk 0:02:00.9]} 27... Nh7 {[%clk 0:00:27.9]} 28.
Nxh7 {[%clk 0:01:57.8]} 28... Kxh7 {[%clk 0:00:27.9]} 29. h5 {[%clk 0:01:56.7]}
29... gxh5 {[%clk 0:00:27]} 30. gxh5 {[%clk 0:01:57.6]} 30... Rg5+ {[%clk
0:00:26.9]} 31. Kh1 {[%clk 0:01:56.2]} 31... Ree5 {[%clk 0:00:18.8]} 32. Rg1
{[%clk 0:01:56.1]} 32... Rxh5+ {[%clk 0:00:18.9]} 33. Nh3 {[%clk 0:01:56.3]}
33... Reg5 {[%clk 0:00:07.3]} 34. Rxg5 {[%clk 0:01:54.1]} 34... Rxg5 {[%clk
0:00:07.5]} 35. Nxg5+ {[%clk 0:01:52.9]} 35... Kg6 {[%clk 0:00:08.4]} 36. Qf5+
{[%clk 0:01:50.4]} 36... Kh5 {[%clk 0:00:08.7]} 37. Nxf7+ {[%clk 0:01:49.6]}
37... Kh4 {[%clk 0:00:08.3]} 38. Qg5+ {[%clk 0:01:47.7]} 38... Kh3 {[%clk
0:00:08.4]} 39. Re3# {[%clk 0:01:47]} 1-0

[Event "*** Titled Tuesday Blitz"]
[Site "Chess.com"]
[Date "2020.11.03"]
[Round "11"]
[White "ljuks68"]
[Black "infinitegiantkiller"]
[Result "0-1"]
[WhiteElo "2365"]
[BlackElo "2472"]
[TimeControl "180+1"]
[EndTime "12:09:09 PST"]
[Termination "infinitegiantkiller won by checkmate"]

1. e4 {[%clk 0:03:00.9]} 1... e6 {[%clk 0:03:00.9]} 2. d4 {[%clk 0:03:00.3]}
2... d5 {[%clk 0:03:01.8]} 3. Nc3 {[%clk 0:03:00.5]} 3... Nf6 {[%clk 0:03:02.1]}
4. Bg5 {[%clk 0:02:59.6]} 4... Be7 {[%clk 0:03:02]} 5. e5 {[%clk 0:02:59.6]}
5... Nfd7 {[%clk 0:03:02.4]} 6. h4 {[%clk 0:02:59.8]} 6... O-O {[%clk
0:03:02.6]} 7. Qg4 {[%clk 0:02:57.6]} 7... f5 {[%clk 0:03:02.4]} 8. Bxe7 {[%clk
0:02:57.5]} 8... Qxe7 {[%clk 0:02:58.7]} 9. Qg5 {[%clk 0:02:57.5]} 9... Qxg5
{[%clk 0:02:58.2]} 10. hxg5 {[%clk 0:02:57.4]} 10... g6 {[%clk 0:02:55]} 11.
O-O-O {[%clk 0:02:47.5]} 11... a6 {[%clk 0:02:54.4]} 12. Nce2 {[%clk 0:02:42.6]}
12... c5 {[%clk 0:02:53.7]} 13. c3 {[%clk 0:02:42.2]} 13... Nc6 {[%clk
0:02:52.9]} 14. Nf3 {[%clk 0:02:42.2]} 14... b5 {[%clk 0:02:51.5]} 15. Nf4
{[%clk 0:02:39.6]} 15... Re8 {[%clk 0:02:44.4]} 16. Kb1 {[%clk 0:02:30.7]} 16...
Bb7 {[%clk 0:02:28.7]} 17. Be2 {[%clk 0:02:23.5]} 17... c4 {[%clk 0:02:01.1]}
18. Rh4 {[%clk 0:02:19.3]} 18... Nf8 {[%clk 0:01:56.6]} 19. g4 {[%clk
0:02:14.7]} 19... Ne7 {[%clk 0:01:52.8]} 20. Nh2 {[%clk 0:02:06.8]} 20... a5
{[%clk 0:01:39.5]} 21. Rh3 {[%clk 0:01:59.4]} 21... b4 {[%clk 0:01:36.9]} 22.
gxf5 {[%clk 0:01:58.6]} 22... Nxf5 {[%clk 0:01:24.9]} 23. Ng4 {[%clk 0:01:57.8]}
23... Bc6 {[%clk 0:01:22.5]} 24. Nf6+ {[%clk 0:01:57.4]} 24... Kg7 {[%clk
0:01:19.7]} 25. Rdh1 {[%clk 0:01:55.7]} 25... Re7 {[%clk 0:01:09.9]} 26. Nxh7
{[%clk 0:01:41.4]} 26... Nxh7 {[%clk 0:01:10.8]} 27. Rxh7+ {[%clk 0:01:40.7]}
27... Kg8 {[%clk 0:01:07.9]} 28. Rxe7 {[%clk 0:01:13.7]} 28... Nxe7 {[%clk
0:01:05.3]} 29. Nxe6 {[%clk 0:01:13.7]} 29... Bd7 {[%clk 0:00:59.8]} 30. Nf4
{[%clk 0:00:53.3]} 30... Bf5+ {[%clk 0:00:59.8]} 31. Kc1 {[%clk 0:00:52.5]}
31... bxc3 {[%clk 0:00:50.7]} 32. bxc3 {[%clk 0:00:52]} 32... Rb8 {[%clk
0:00:51.2]} 33. Kd2 {[%clk 0:00:52]} 33... Rb2+ {[%clk 0:00:50.5]} 34. Ke3
{[%clk 0:00:44.4]} 34... Be4 {[%clk 0:00:50.2]} 35. Bf3 {[%clk 0:00:40.9]} 35...
Nf5# {[%clk 0:00:49.6]} 0-1

[Event "*** Titled Tuesday Blitz"]
[Site "Chess.com"]
[Date "2020.11.03"]
[Round "11"]
[White "lamomiablanca"]
[Black "GAusal"]
[Result "1-0"]
[WhiteElo "2280"]
[BlackElo "2091"]
[TimeControl "180+1"]
[EndTime "12:09:09 PST"]
[Termination "lamomiablanca won by checkmate"]

1. e4 {[%clk 0:03:00.9]} 1... c5 {[%clk 0:02:58.9]} 2. d3 {[%clk 0:02:59.5]}
2... e6 {[%clk 0:02:57.6]} 3. g3 {[%clk 0:02:59]} 3... d6 {[%clk 0:02:57.5]} 4.
Bg2 {[%clk 0:02:58.5]} 4... Nc6 {[%clk 0:02:57.9]} 5. f4 {[%clk 0:02:58.2]} 5...
g6 {[%clk 0:02:58.2]} 6. Nf3 {[%clk 0:02:58.2]} 6... Bg7 {[%clk 0:02:58.8]} 7.
O-O {[%clk 0:02:58.5]} 7... Nge7 {[%clk 0:02:59.4]} 8. c3 {[%clk 0:02:58.9]}
8... O-O {[%clk 0:02:59.9]} 9. Be3 {[%clk 0:02:55.3]} 9... Rb8 {[%clk
0:02:58.8]} 10. d4 {[%clk 0:02:26.5]} 10... cxd4 {[%clk 0:02:57.1]} 11. cxd4
{[%clk 0:02:24.7]} 11... d5 {[%clk 0:02:57.1]} 12. e5 {[%clk 0:02:24.3]} 12...
Nf5 {[%clk 0:02:57]} 13. Bf2 {[%clk 0:02:23.7]} 13... h5 {[%clk 0:02:57]} 14.
Nc3 {[%clk 0:02:16]} 14... a6 {[%clk 0:02:51.5]} 15. Rc1 {[%clk 0:02:13.9]}
15... Bd7 {[%clk 0:02:50.4]} 16. h3 {[%clk 0:02:09.7]} 16... b5 {[%clk
0:02:26.4]} 17. g4 {[%clk 0:01:55.9]} 17... hxg4 {[%clk 0:02:24.9]} 18. hxg4
{[%clk 0:01:56.6]} 18... Nfe7 {[%clk 0:02:20.5]} 19. Bh4 {[%clk 0:01:47.2]}
19... Qa5 {[%clk 0:02:12.5]} 20. a3 {[%clk 0:01:37.3]} 20... b4 {[%clk
0:02:10.4]} 21. Na4 {[%clk 0:01:27.7]} 21... Nxe5 {[%clk 0:01:36.5]} 22. fxe5
{[%clk 0:01:11.1]} 22... Bxa4 {[%clk 0:01:35.7]} 23. b3 {[%clk 0:01:11]} 23...
Bb5 {[%clk 0:01:31.3]} 24. Bxe7 {[%clk 0:01:03.2]} 24... Rfe8 {[%clk 0:01:31.3]}
25. Bxb4 {[%clk 0:01:02.9]} 25... Qb6 {[%clk 0:01:28.5]} 26. Re1 {[%clk
0:01:02.4]} 26... a5 {[%clk 0:01:23.8]} 27. Bc5 {[%clk 0:01:01.4]} 27... Qb7
{[%clk 0:01:23.3]} 28. Qd2 {[%clk 0:00:55.4]} 28... Qa6 {[%clk 0:01:18.3]} 29.
Kf2 {[%clk 0:00:54.4]} 29... Bf8 {[%clk 0:01:15.4]} 30. Bxf8 {[%clk 0:00:51.9]}
30... Rxf8 {[%clk 0:01:15]} 31. Rh1 {[%clk 0:00:51.1]} 31... f6 {[%clk
0:01:00.7]} 32. Qh6 {[%clk 0:00:43.7]} 32... Kf7 {[%clk 0:00:56.4]} 33. Rc7+
{[%clk 0:00:43.1]} 33... Ke8 {[%clk 0:00:55.3]} 34. Qxf8+ {[%clk 0:00:42.2]}
34... Kxf8 {[%clk 0:00:52]} 35. Rh8# {[%clk 0:00:41.9]} 1-0

[Event "*** Titled Tuesday Blitz"]
[Site "Chess.com"]
[Date "2020.11.03"]
[Round "11"]
[White "AurumO"]
[Black "picturesquecheck"]
[Result "0-1"]
[WhiteElo "1960"]
[BlackElo "2122"]
[TimeControl "180+1"]
[EndTime "12:09:09 PST"]
[Termination "picturesquecheck won on time"]

1. e4 {[%clk 0:03:00.9]} 1... c5 {[%clk 0:02:57.5]} 2. c3 {[%clk 0:03:00.4]}
2... d5 {[%clk 0:02:56.9]} 3. exd5 {[%clk 0:03:01.3]} 3... Qxd5 {[%clk
0:02:57.5]} 4. d4 {[%clk 0:02:59.9]} 4... Nc6 {[%clk 0:02:57.6]} 5. Nf3 {[%clk
0:02:59.9]} 5... Bf5 {[%clk 0:02:58.1]} 6. c4 {[%clk 0:02:41]} 6... Qe4+ {[%clk
0:02:57.6]} 7. Be3 {[%clk 0:02:33.8]} 7... cxd4 {[%clk 0:02:51]} 8. Nxd4 {[%clk
0:02:32]} 8... O-O-O {[%clk 0:02:46.7]} 9. Nc3 {[%clk 0:02:24.8]} 9... Rxd4
{[%clk 0:02:41.9]} 10. Nxe4 {[%clk 0:01:46.6]} 10... Rxd1+ {[%clk 0:02:40.2]}
11. Rxd1 {[%clk 0:01:47.5]} 11... Bxe4 {[%clk 0:02:40.7]} 12. f3 {[%clk
0:01:45.7]} 12... Bg6 {[%clk 0:02:40.2]} 13. a3 {[%clk 0:01:42.4]} 13... e6
{[%clk 0:02:40]} 14. Be2 {[%clk 0:01:34.2]} 14... Nf6 {[%clk 0:02:39.1]} 15. O-O
{[%clk 0:01:33.3]} 15... Be7 {[%clk 0:02:38.9]} 16. b4 {[%clk 0:01:33]} 16... b6
{[%clk 0:02:36.8]} 17. c5 {[%clk 0:01:23.2]} 17... bxc5 {[%clk 0:02:36.5]} 18.
Rc1 {[%clk 0:01:21]} 18... Kb7 {[%clk 0:02:23.9]} 19. bxc5 {[%clk 0:01:07.7]}
19... Rd8 {[%clk 0:02:16.3]} 20. Rb1+ {[%clk 0:01:04.4]} 20... Bxb1 {[%clk
0:02:13.8]} 21. Rxb1+ {[%clk 0:01:02.4]} 21... Ka8 {[%clk 0:02:14.1]} 22. Ba6
{[%clk 0:00:53.4]} 22... Rb8 {[%clk 0:02:07.9]} 23. Rd1 {[%clk 0:00:49.4]} 23...
Nd5 {[%clk 0:02:06.4]} 24. Bf2 {[%clk 0:00:48]} 24... Rb2 {[%clk 0:02:00.2]} 25.
Bc4 {[%clk 0:00:34.2]} 25... Nf4 {[%clk 0:01:56.2]} 26. Ba6 {[%clk 0:00:11]}
26... Nd5 {[%clk 0:01:40.4]} 27. h3 {[%clk 0:00:11]} 27... Rxf2 {[%clk
0:01:39.2]} 28. Kxf2 {[%clk 0:00:09.2]} 28... Bxc5+ {[%clk 0:01:40.1]} 29. Kg3
{[%clk 0:00:07.8]} 29... Bxa3 {[%clk 0:01:40.5]} 30. Rb1 {[%clk 0:00:05.1]}
30... Bd6+ {[%clk 0:01:41.1]} 31. Kf2 {[%clk 0:00:04.3]} 31... Nb6 {[%clk
0:01:39.5]} 32. Bb5 {[%clk 0:00:02.3]} 32... Nd4 {[%clk 0:01:38.1]} 33. Ba6
{[%clk 0:00:03.2]} 33... e5 {[%clk 0:01:37.5]} 34. Ke3 {[%clk 0:00:01.8]} 34...
f5 {[%clk 0:01:35.9]} 35. f4 {[%clk 0:00:01.9]} 35... Nc2+ {[%clk 0:01:28.8]}
0-1

[Event "*** Titled Tuesday Blitz"]
[Site "Chess.com"]
[Date "2020.11.03"]
[Round "11"]
[White "Tomekas1"]
[Black "A-S-00"]
[Result "0-1"]
[WhiteElo "2445"]
[BlackElo "2345"]
[TimeControl "180+1"]
[EndTime "12:09:11 PST"]
[Termination "A-S-00 won by checkmate"]

1. e4 {[%clk 0:03:00.9]} 1... c5 {[%clk 0:02:59.1]} 2. Nf3 {[%clk 0:03:01.4]}
2... Nc6 {[%clk 0:02:58]} 3. d4 {[%clk 0:03:01.9]} 3... cxd4 {[%clk 0:02:58.3]}
4. Nxd4 {[%clk 0:03:02.8]} 4... Nf6 {[%clk 0:02:58.5]} 5. Nc3 {[%clk 0:03:03.1]}
5... e6 {[%clk 0:02:58.8]} 6. Be3 {[%clk 0:03:02.9]} 6... Bb4 {[%clk 0:02:58.3]}
7. f3 {[%clk 0:03:02.7]} 7... d5 {[%clk 0:02:58.5]} 8. Nxc6 {[%clk 0:02:57.5]}
8... bxc6 {[%clk 0:02:58.1]} 9. exd5 {[%clk 0:02:55.3]} 9... exd5 {[%clk
0:02:49]} 10. Bd4 {[%clk 0:02:50]} 10... O-O {[%clk 0:02:44.7]} 11. Be2 {[%clk
0:02:49.6]} 11... c5 {[%clk 0:02:36.5]} 12. Bxf6 {[%clk 0:02:48.4]} 12... Qxf6
{[%clk 0:02:35.4]} 13. O-O {[%clk 0:02:46]} 13... Bxc3 {[%clk 0:02:29.1]} 14.
bxc3 {[%clk 0:02:46.9]} 14... Qxc3 {[%clk 0:01:50.4]} 15. Qxd5 {[%clk
0:02:46.7]} 15... Rb8 {[%clk 0:01:38.4]} 16. Bd3 {[%clk 0:02:38.9]} 16... Bb7
{[%clk 0:01:34.2]} 17. Qf5 {[%clk 0:02:33.6]} 17... g6 {[%clk 0:01:33]} 18. Qg4
{[%clk 0:02:30.2]} 18... Rbd8 {[%clk 0:01:19.3]} 19. Rab1 {[%clk 0:02:22.7]}
19... Rd4 {[%clk 0:01:18.2]} 20. Qg5 {[%clk 0:02:05.3]} 20... Bd5 {[%clk
0:01:13.6]} 21. h4 {[%clk 0:01:18.6]} 21... Bxa2 {[%clk 0:01:12.7]} 22. Ra1
{[%clk 0:01:16]} 22... Rd5 {[%clk 0:00:33.5]} 23. Qe7 {[%clk 0:01:09.2]} 23...
Re5 {[%clk 0:00:22.3]} 24. Qxa7 {[%clk 0:01:00.1]} 24... Qd4+ {[%clk 0:00:21.8]}
25. Kh2 {[%clk 0:00:56]} 25... Qxh4+ {[%clk 0:00:20.7]} 26. Kg1 {[%clk
0:00:56.6]} 26... Qd4+ {[%clk 0:00:20.6]} 27. Kh2 {[%clk 0:00:56.3]} 27... Rh5+
{[%clk 0:00:20.6]} 28. Kg3 {[%clk 0:00:56.3]} 28... Qh4# {[%clk 0:00:20.5]} 0-1

[Event "*** Titled Tuesday Blitz"]
[Site "Chess.com"]
[Date "2020.11.03"]
[Round "11"]
[White "Baby_Legs"]
[Black "SGchess01"]
[Result "1-0"]
[WhiteElo "2756"]
[BlackElo "2854"]
[TimeControl "180+1"]
[EndTime "12:09:17 PST"]
[Termination "Baby_Legs won by resignation"]

1. Nf3 {[%clk 0:03:00.9]} 1... Nf6 {[%clk 0:02:58.2]} 2. e3 {[%clk 0:03:00.5]}
2... b6 {[%clk 0:02:57.9]} 3. c4 {[%clk 0:02:59.9]} 3... Bb7 {[%clk 0:02:58.2]}
4. b3 {[%clk 0:03:00.3]} 4... g6 {[%clk 0:02:57.6]} 5. Bb2 {[%clk 0:03:00.8]}
5... Bg7 {[%clk 0:02:58.1]} 6. Be2 {[%clk 0:03:00.7]} 6... O-O {[%clk 0:02:58]}
7. O-O {[%clk 0:03:01.3]} 7... c5 {[%clk 0:02:58.4]} 8. d4 {[%clk 0:02:57]} 8...
e6 {[%clk 0:02:58.3]} 9. dxc5 {[%clk 0:02:50.1]} 9... bxc5 {[%clk 0:02:57.1]}
10. Nbd2 {[%clk 0:02:49.4]} 10... Qe7 {[%clk 0:02:54.9]} 11. Qc2 {[%clk
0:02:49.1]} 11... Nc6 {[%clk 0:02:55.1]} 12. Rad1 {[%clk 0:02:47.5]} 12... d6
{[%clk 0:02:55.4]} 13. Nb1 {[%clk 0:02:45.7]} 13... Rad8 {[%clk 0:02:53.5]} 14.
Nc3 {[%clk 0:02:45.9]} 14... Nh5 {[%clk 0:02:52.5]} 15. Ne1 {[%clk 0:02:39.8]}
15... f5 {[%clk 0:02:46.3]} 16. Bxh5 {[%clk 0:02:37.7]} 16... gxh5 {[%clk
0:02:47.2]} 17. Ne2 {[%clk 0:02:37.7]} 17... e5 {[%clk 0:02:40.8]} 18. f4 {[%clk
0:02:18.6]} 18... h4 {[%clk 0:02:38.6]} 19. h3 {[%clk 0:02:02.4]} 19... Rf6
{[%clk 0:01:58.7]} 20. Nf3 {[%clk 0:01:50.6]} 20... Rg6 {[%clk 0:01:57.2]} 21.
Qxf5 {[%clk 0:01:41.3]} 21... Bc8 {[%clk 0:01:49.4]} 22. Qe4 {[%clk 0:01:33.7]}
22... Bxh3 {[%clk 0:01:43.7]} 23. Rf2 {[%clk 0:01:32.9]} 23... exf4 {[%clk
0:00:48.8]} 24. Qxe7 {[%clk 0:01:25.3]} 24... Nxe7 {[%clk 0:00:48.7]} 25. Nxf4
{[%clk 0:01:25.5]} 25... Bxb2 {[%clk 0:00:42.9]} 26. Rxb2 {[%clk 0:01:22.9]}
26... Bg4 {[%clk 0:00:35.6]} 27. Nxg6 {[%clk 0:01:22.7]} 27... Nxg6 {[%clk
0:00:36.5]} 28. Rbd2 {[%clk 0:01:20.8]} 28... Re8 {[%clk 0:00:35.3]} 29. Kf2
{[%clk 0:01:19.1]} 29... Rf8 {[%clk 0:00:34.9]} 30. Rxd6 {[%clk 0:01:09.2]}
30... h3 {[%clk 0:00:35.3]} 31. Rd8 {[%clk 0:01:08.9]} 31... hxg2 {[%clk
0:00:35.2]} 32. Rxf8+ {[%clk 0:01:08.2]} 32... Kxf8 {[%clk 0:00:36.1]} 33. Rg1
{[%clk 0:00:59.9]} 33... h5 {[%clk 0:00:30.8]} 34. Rxg2 {[%clk 0:00:58.4]} 34...
Bxf3 {[%clk 0:00:30.6]} 35. Rxg6 {[%clk 0:00:58.5]} 1-0

[Event "*** Titled Tuesday Blitz"]
[Site "Chess.com"]
[Date "2020.11.03"]
[Round "11"]
[White "Korchmar_Vasiliy"]
[Black "djano"]
[Result "1-0"]
[WhiteElo "2616"]
[BlackElo "2465"]
[TimeControl "180+1"]
[EndTime "12:09:20 PST"]
[Termination "Korchmar_Vasiliy won by resignation"]

1. e4 {[%clk 0:03:00.9]} 1... c5 {[%clk 0:02:58.8]} 2. Nf3 {[%clk 0:03:00.2]}
2... g6 {[%clk 0:02:58.3]} 3. d4 {[%clk 0:02:54]} 3... cxd4 {[%clk 0:02:59.2]}
4. Nxd4 {[%clk 0:02:54.8]} 4... Nc6 {[%clk 0:02:58.2]} 5. Be3 {[%clk 0:02:52.3]}
5... Bg7 {[%clk 0:02:56.5]} 6. c4 {[%clk 0:02:52.3]} 6... b6 {[%clk 0:02:51.4]}
7. Nc3 {[%clk 0:02:51.6]} 7... Bb7 {[%clk 0:02:51.2]} 8. Be2 {[%clk 0:02:51.2]}
8... Nf6 {[%clk 0:02:46.2]} 9. f3 {[%clk 0:02:39.7]} 9... O-O {[%clk 0:02:44.5]}
10. O-O {[%clk 0:02:40.1]} 10... Rc8 {[%clk 0:02:30.1]} 11. Qd2 {[%clk
0:02:39.3]} 11... Nxd4 {[%clk 0:02:11.7]} 12. Bxd4 {[%clk 0:02:38.5]} 12... d6
{[%clk 0:02:12.2]} 13. Rac1 {[%clk 0:02:34.1]} 13... e5 {[%clk 0:01:57.4]} 14.
Be3 {[%clk 0:02:32.9]} 14... Qe7 {[%clk 0:01:57.6]} 15. Nb5 {[%clk 0:02:29.2]}
15... Rfd8 {[%clk 0:01:43.8]} 16. Nxa7 {[%clk 0:02:28.8]} 16... Ra8 {[%clk
0:01:43.9]} 17. Bxb6 {[%clk 0:02:28.7]} 17... Rd7 {[%clk 0:01:13.1]} 18. a4
{[%clk 0:02:28.4]} 18... Rxa7 {[%clk 0:00:51.1]} 19. Bxa7 {[%clk 0:02:27.7]}
19... Bxe4 {[%clk 0:00:50.9]} 20. Be3 {[%clk 0:02:18.2]} 20... Bc6 {[%clk
0:00:47.3]} 21. a5 {[%clk 0:02:17.1]} 21... d5 {[%clk 0:00:47.6]} 22. cxd5
{[%clk 0:02:16.5]} 22... Bxd5 {[%clk 0:00:44.8]} 23. Rc8+ {[%clk 0:02:15.6]}
23... Rd8 {[%clk 0:00:45.1]} 24. Rxd8+ {[%clk 0:02:14.5]} 24... Qxd8 {[%clk
0:00:46]} 25. a6 {[%clk 0:02:11.8]} 25... e4 {[%clk 0:00:41.2]} 26. a7 {[%clk
0:02:09.4]} 26... Bf8 {[%clk 0:00:39.4]} 27. b4 {[%clk 0:01:41.3]} 27... Qa8
{[%clk 0:00:38.5]} 28. b5 {[%clk 0:01:39.2]} 28... Bd6 {[%clk 0:00:33.3]} 29. b6
{[%clk 0:01:30.7]} 29... Qb7 {[%clk 0:00:16]} 30. Qd4 {[%clk 0:01:27.1]} 30...
Nd7 {[%clk 0:00:13.8]} 31. Rd1 {[%clk 0:01:25.6]} 31... Bc5 {[%clk 0:00:13.7]}
32. Qxd5 {[%clk 0:01:23.6]} 32... Bxe3+ {[%clk 0:00:13.8]} 33. Kf1 {[%clk
0:01:24.1]} 33... Qxd5 {[%clk 0:00:12.4]} 34. Rxd5 {[%clk 0:01:25]} 34... Nxb6
{[%clk 0:00:12.8]} 35. Rd8+ {[%clk 0:01:20.7]} 35... Kg7 {[%clk 0:00:13.1]} 36.
Rb8 {[%clk 0:01:20.3]} 1-0